bitfinex/quotes_SOLUSD_20251117
["timestamp","ask_amount","ask_price","bid_price","bid_amount"]
[1763340422147,5.51766472,139.26,139.25,5.85625846]
[1763340422453,5.51766472,139.26,139.24,5.85625846]
[1763340422956,5.51766472,139.28,139.25,5.85625846]
[1763340423152,5.51766472,139.27,139.25,5.88475184]
[1763340425063,72.6512,139.32,139.22,5.88475184]
[1763340425064,6.08766472,139.26,139.22,5.88475184]
[1763340425234,5.51766472,139.23,139.22,5.88475184]
[1763340425561,6.08766472,139.23,139.21,5.88475184]
[1763340425860,6.08766472,139.22,139.2,5.88475184]
[1763340426044,5.51766472,139.21,139.18,5.88475184]
[1763340426239,5.51766472,139.2,139.18,5.88475184]
[1763340426759,5.51766472,139.21,139.19,0.68]
[1763340426938,5.51766472,139.21,139.18,5.88475184]
[1763340427140,5.51766472,139.21,139.18,6.56475184]
[1763340427939,5.51766472,139.22,139.19,0.68]
[1763340428331,5.51766472,139.22,139.18,5.88475184]
[1763340428532,5.51766472,139.22,139.18,6.56475184]
[1763340428733,5.51766472,139.24,139.19,16.35357953]
[1763340429044,5.51766472,139.23,139.19,16.35357953]
[1763340429561,5.51766472,139.23,139.2,0.68]
[1763340430560,5.51766472,139.23,139.2,6.56475184]
[1763340431457,5.51766472,139.23,139.2,5.88475184]
[1763340431661,5.51766472,139.23,139.2,6.56475184]
[1763340432546,22.6512,139.26,139.21,5.88475184]
[1763340432733,5.51766472,139.26,139.23,5.88475184]
[1763340432938,0.57,139.25,139.22,5.88475184]
[1763340433154,5.51766472,139.24,139.22,5.88475184]
[1763340433768,22.6512,139.27,139.22,5.88475184]
[1763340433983,5.51766472,139.23,139.22,5.88475184]
[1763340434272,5.51766472,139.23,139.2,5.88475184]
[1763340434450,5.51766472,139.22,139.2,5.88475184]
[1763340434658,6.08766472,139.22,139.2,5.88475184]
[1763340435184,103.2,139.28,139.21,6.56475184]
[1763340435343,0.57,139.31,139.23,15.67622172]
[1763340435542,5.51766472,139.3,139.25,15.67622172]
[1763340435742,5.51766472,139.31,139.27,5.88739403]
[1763340435944,5.51766472,139.3,139.27,5.88739403]
[1763340436178,5.51766472,139.28,139.26,5.88739403]
[1763340436466,23.2212,139.3,139.26,5.88739403]
[1763340436667,5.51766472,139.27,139.25,5.88739403]
[1763340436863,5.51766472,139.26,139.23,5.88739403]
[1763340437046,5.51766472,139.25,139.23,5.88739403]
[1763340437437,0.57,139.26,139.24,5.88739403]
[1763340437438,5.51766472,139.26,139.24,5.88739403]
[1763340438556,5.51766472,139.28,139.25,5.88739403]
[1763340439163,5.51766472,139.26,139.25,5.88739403]
[1763340439460,5.51766472,139.27,139.25,5.88739403]
[1763340440773,6.08766472,139.28,139.25,5.88739403]
[1763340441566,5.51766472,139.26,139.22,5.88739403]
[1763340441749,5.51766472,139.25,139.23,5.88739403]
[1763340442467,5.51766472,139.26,139.23,6.57739403]
[1763340442857,5.51766472,139.26,139.23,5.88739403]
[1763340443174,5.51766472,139.27,139.25,5.88739403]
[1763340443559,5.51766472,139.3,139.26,6.57739403]
[1763340443767,5.51766472,139.31,139.28,5.88739403]
[1763340444071,5.51766472,139.29,139.26,5.88739403]
[1763340444272,5.51766472,139.28,139.27,5.88739403]
[1763340444455,5.51766472,139.29,139.27,5.88739403]
[1763340444655,5.51766472,139.31,139.28,0.69]
[1763340444850,5.51766472,139.3,139.28,5.89344725]
[1763340445171,5.51766472,139.31,139.28,5.89344725]
[1763340445871,5.51766472,139.29,139.28,5.89344725]
[1763340446073,5.51766472,139.3,139.28,5.89344725]
[1763340446273,23.2212,139.31,139.25,0.69]
[1763340446274,5.51766472,139.29,139.27,5.89344725]
[1763340447758,6.08766472,139.28,139.26,5.89344725]
[1763340447961,72.6512,139.31,139.25,5.89344725]
[1763340447962,23.2212,139.3,139.25,5.89344725]
[1763340448277,5.51766472,139.26,139.25,5.89344725]
[1763340448573,5.51766472,139.26,139.24,5.89344725]
[1763340449378,5.51766472,139.25,139.24,5.89344725]
[1763340451374,5.51766472,139.26,139.24,5.89344725]
[1763340451751,5.51766472,139.26,139.25,0.7]
[1763340452060,103.77,139.3,139.25,6.59344725]
[1763340452061,5.51766472,139.28,139.25,6.59344725]
[1763340452875,5.51766472,139.28,139.24,5.89344725]
[1763340452876,5.51766472,139.26,139.24,5.89344725]
[1763340453075,22.6512,139.24,139.2,5.89344725]
[1763340453381,5.51766472,139.21,139.17,5.89344725]
[1763340453679,5.51766472,139.18,139.17,5.89344725]
[1763340453887,5.51766472,139.18,139.15,5.89344725]
[1763340454065,5.51766472,139.16,139.14,23.17344725]
[1763340454378,5.51766472,139.16,139.15,5.89344725]
[1763340455373,5.51766472,139.16,139.14,23.17344725]
[1763340455576,5.51766472,139.16,139.14,23.87344725]
[1763340456366,59.78882769,139.25,139.14,23.17344725]
[1763340456581,22.6512,139.22,139.16,11.41111197]
[1763340456759,5.51766472,139.2,139.18,5.89344725]
[1763340456960,5.51766472,139.2,139.17,5.89344725]
[1763340457356,5.51766472,139.21,139.18,0.7]
[1763340457664,5.51766472,139.21,139.17,5.89344725]
[1763340457862,5.51766472,139.21,139.17,6.59344725]
[1763340459277,5.51766472,139.2,139.17,6.59344725]
[1763340459489,5.51766472,139.21,139.17,6.59344725]
[1763340460278,5.51766472,139.22,139.18,0.7]
[1763340460490,28.16886472,139.23,139.18,0.7]
[1763340460694,5.51766472,139.25,139.19,21.19993966]
[1763340460876,0.57,139.28,139.21,5.89344725]
[1763340461188,5.51766472,139.24,139.21,6.59344725]
[1763340461358,5.51766472,139.24,139.21,5.89344725]
[1763340461562,5.51766472,139.23,139.2,5.89344725]
[1763340461781,5.51766472,139.23,139.2,6.59344725]
[1763340461995,5.51766472,139.24,139.21,5.89344725]
[1763340462171,55.51766472,139.3,139.21,5.89344725]
[1763340462172,0.57,139.29,139.21,6.59344725]
[1763340462487,5.51766472,139.25,139.22,0.7]
[1763340462678,5.51766472,139.24,139.21,5.89344725]
[1763340463492,5.51766472,139.24,139.21,6.59344725]
[1763340464767,5.51766472,139.23,139.21,6.59344725]
[1763340465083,5.51766472,139.24,139.21,6.59344725]
[1763340465691,28.16886472,139.25,139.22,0.7]
[1763340466090,5.51766472,139.24,139.21,5.89344725]
[1763340466391,5.51766472,139.24,139.21,6.59344725]
[1763340466591,5.51766472,139.24,139.21,5.89344725]
[1763340466796,5.51766472,139.24,139.21,6.59344725]
[1763340466992,5.51766472,139.24,139.21,5.89344725]
[1763340467172,5.51766472,139.23,139.21,5.89344725]
[1763340468496,6.08766472,139.22,139.2,5.89344725]
[1763340468692,5.51766472,139.21,139.18,5.89344725]
[1763340468889,5.51766472,139.19,139.18,5.89344725]
[1763340469493,5.51766472,139.19,139.17,5.89344725]
[1763340469698,0.57,139.21,139.16,5.89344725]
[1763340469699,5.51766472,139.18,139.16,5.89344725]
[1763340469895,5.51766472,139.19,139.16,6.59344725]
[1763340470194,5.51766472,139.2,139.17,6.59344725]
[1763340471289,5.51766472,139.21,139.18,0.7]
[1763340471699,5.51766472,139.24,139.19,15.68227494]
[1763340471884,5.51766472,139.24,139.2,5.89344725]
[1763340472206,5.51766472,139.24,139.2,6.59344725]
[1763340472378,5.51766472,139.24,139.21,0.7]
[1763340473296,5.51766472,139.25,139.22,5.89344725]
[1763340473501,5.51766472,139.25,139.22,6.59344725]
[1763340475101,5.51766472,139.26,139.23,0.7]
[1763340475294,5.51766472,139.26,139.23,6.59344725]
[1763340475493,5.51766472,139.26,139.24,0.7]
[1763340476298,5.51766472,139.26,139.23,5.89344725]
[1763340476513,5.51766472,139.25,139.23,5.89344725]
[1763340476707,5.51766472,139.25,139.23,6.59344725]
[1763340477222,5.51766472,139.24,139.23,5.89344725]
[1763340477518,5.51766472,139.24,139.21,5.89344725]
[1763340477681,5.51766472,139.23,139.21,6.59344725]
[1763340478200,5.51766472,139.22,139.2,5.89344725]
[1763340478401,5.51766472,139.21,139.2,5.89344725]
[1763340479221,5.51766472,139.22,139.2,5.89344725]
[1763340479916,5.51766472,139.21,139.2,5.89344725]
[1763340480114,5.51766472,139.21,139.19,5.89344725]
[1763340480308,5.51766472,139.21,139.19,6.61344725]
[1763340480615,5.51766472,139.22,139.19,6.61344725]
[1763340481717,5.51766472,139.21,139.19,6.61344725]
[1763340482397,5.51766472,139.22,139.2,0.72]
[1763340482709,5.51766472,139.22,139.2,5.89344725]
[1763340483013,9.23336045,139.22,139.2,6.61344725]
[1763340483897,9.23336045,139.22,139.18,7.87105065]
[1763340483898,9.23336045,139.22,139.19,5.89344725]
[1763340484217,9.23336045,139.22,139.19,6.61344725]
[1763340484516,9.23336045,139.22,139.2,5.89344725]
[1763340484717,23.2212,139.24,139.21,5.89344725]
[1763340484718,22.6512,139.24,139.21,5.89344725]
[1763340484919,9.23336045,139.27,139.23,15.68227494]
[1763340485417,0.57,139.3,139.25,9.78882769]
[1763340485418,9.23336045,139.3,139.25,9.78882769]
[1763340485589,103.2,139.31,139.26,5.89344725]
[1763340485788,103.2,139.31,139.27,0.72]
[1763340485999,9.23336045,139.29,139.26,6.61344725]
[1763340486809,9.23336045,139.29,139.27,0.72]
[1763340488519,9.23336045,139.3,139.27,0.72]
[1763340488722,9.23336045,139.3,139.27,6.61344725]
[1763340488920,9.23336045,139.28,139.25,39.05347494]
[1763340489224,9.23336045,139.28,139.26,6.61344725]
[1763340490001,9.23336045,139.28,139.25,32.44002769]
[1763340490002,9.23336045,139.27,139.25,5.89344725]
[1763340490202,9.23336045,139.26,139.23,6.61344725]
[1763340490421,9.23336045,139.25,139.23,6.61344725]
[1763340490623,9.23336045,139.26,139.23,6.61344725]
[1763340490993,9.23336045,139.26,139.24,5.89344725]
[1763340491332,22.6512,139.32,139.24,6.61344725]
[1763340491623,9.23336045,139.27,139.25,0.72]
[1763340491925,9.23336045,139.27,139.24,5.89344725]
[1763340492102,9.23336045,139.27,139.24,6.61344725]
[1763340492705,9.23336045,139.26,139.24,6.61344725]
[1763340493108,9.23336045,139.27,139.24,6.61344725]
[1763340493894,9.23336045,139.26,139.25,5.89344725]
[1763340494193,9.23336045,139.26,139.24,5.89344725]
[1763340494823,9.23336045,139.27,139.25,0.72]
[1763340495204,9.23336045,139.27,139.25,6.61344725]
[1763340495610,9.23336045,139.29,139.26,0.72]
[1763340495820,72.06222477,139.34,139.27,15.68227494]
[1763340495821,9.23336045,139.31,139.27,15.68227494]
[1763340496031,9.23336045,139.33,139.29,5.89344725]
[1763340496321,9.23336045,139.32,139.29,6.57344725]
[1763340496913,9.23336045,139.32,139.29,0.68]
[1763340497423,9.23336045,139.31,139.29,0.68]
[1763340497924,9.23336045,139.31,139.27,9.78882769]
[1763340497925,9.80336045,139.3,139.27,5.89344725]
[1763340498222,9.23336045,139.28,139.26,5.89344725]
[1763340498398,9.23336045,139.28,139.26,6.57344725]
[1763340498597,9.23336045,139.28,139.26,0.68]
[1763340499302,22.6512,139.33,139.26,6.57344725]
[1763340499509,9.23336045,139.3,139.27,6.57344725]
[1763340499841,9.23336045,139.33,139.29,9.78882769]
[1763340500130,9.23336045,139.35,139.31,15.68227494]
[1763340500726,9.23336045,139.35,139.32,0.68]
[1763340501216,9.23336045,139.35,139.32,6.57344725]
[1763340501609,9.23336045,139.35,139.33,0.68]
[1763340501930,0.1,139.38,139.34,9.78882769]
[1763340502113,0.1,139.38,139.34,5.89344725]
[1763340502114,9.23336045,139.35,139.34,5.89344725]
[1763340502319,9.23336045,139.35,139.32,6.57344725]
[1763340502629,0.67,139.38,139.32,5.89344725]
[1763340502630,9.23336045,139.33,139.32,5.89344725]
[1763340502807,9.23336045,139.33,139.28,5.89344725]
[1763340503122,9.23336045,139.29,139.26,6.57344725]
[1763340503302,9.23336045,139.28,139.27,5.89344725]
[1763340503498,9.23336045,139.28,139.26,0.68]
[1763340503499,9.23336045,139.28,139.25,15.68227494]
[1763340503819,9.23336045,139.28,139.25,16.36227494]
[1763340504126,9.23336045,139.27,139.25,6.57344725]
[1763340504602,9.23336045,139.26,139.24,5.89344725]
[1763340505001,9.23336045,139.26,139.24,6.57344725]
[1763340506026,9.23336045,139.28,139.25,0.68]
[1763340506212,9.23336045,139.27,139.25,6.57344725]
[1763340506415,9.23336045,139.27,139.25,0.68]
[1763340506626,9.23336045,139.26,139.24,5.89344725]
[1763340506927,22.6512,139.31,139.25,0.68]
[1763340507117,9.23336045,139.28,139.25,16.36227494]
[1763340507730,9.23336045,139.28,139.26,0.68]
[1763340507937,9.23336045,139.28,139.26,6.57344725]
[1763340508104,9.23336045,139.27,139.24,5.89344725]
[1763340508301,9.23336045,139.25,139.24,5.89344725]
[1763340508535,9.23336045,139.25,139.23,5.89344725]
[1763340508737,0.57,139.27,139.22,6.57344725]
[1763340508738,9.23336045,139.24,139.22,6.57344725]
[1763340508900,9.23336045,139.24,139.22,0.68]
[1763340509106,9.23336045,139.24,139.22,6.57344725]
[1763340510333,9.23336045,139.24,139.22,5.89344725]
[1763340510537,9.23336045,139.27,139.23,0.69]
[1763340510717,9.23336045,139.27,139.25,5.89798866]
[1763340511030,9.23336045,139.27,139.24,5.89798866]
[1763340511233,9.23336045,139.27,139.24,6.58798866]
[1763340512140,9.23336045,139.27,139.25,5.89798866]
[1763340512306,9.23336045,139.26,139.24,5.89798866]
[1763340512632,9.23336045,139.25,139.23,5.89798866]
[1763340512840,9.23336045,139.24,139.21,5.89798866]
[1763340513132,9.23336045,139.23,139.21,5.89798866]
[1763340513704,23.2212,139.28,139.22,0.69]
[1763340513938,0.57,139.27,139.22,6.58798866]
[1763340514126,9.23336045,139.24,139.22,6.58798866]
[1763340514633,9.23336045,139.27,139.23,6.58798866]
[1763340514846,0.57,139.32,139.25,9.78882769]
[1763340515029,9.23336045,139.29,139.27,5.89798866]
[1763340515244,0.57,139.34,139.28,0.69]
[1763340515414,9.23336045,139.31,139.28,6.58798866]
[1763340515735,9.23336045,139.31,139.29,0.69]
[1763340515950,9.23336045,139.3,139.29,0.69]
[1763340516236,9.23336045,139.3,139.28,5.89798866]
[1763340516409,9.23336045,139.3,139.26,7.87105065]
[1763340516410,9.23336045,139.29,139.26,5.89798866]
[1763340516735,9.23336045,139.28,139.26,5.89798866]
[1763340516926,9.23336045,139.27,139.25,6.58798866]
[1763340517130,9.23336045,139.28,139.26,6.58798866]
[1763340517507,22.6512,139.33,139.27,0.69]
[1763340517732,9.23336045,139.28,139.27,5.89798866]
[1763340518139,9.23336045,139.29,139.27,5.89798866]
[1763340518340,9.23336045,139.29,139.26,5.89798866]
[1763340518634,0.57,139.32,139.27,5.89798866]
[1763340518840,22.6512,139.33,139.27,6.58798866]
[1763340519059,9.23336045,139.3,139.27,6.58798866]
[1763340519441,9.23336045,139.29,139.27,6.58798866]
[1763340519613,23.2212,139.33,139.27,6.58798866]
[1763340519933,9.23336045,139.29,139.27,6.58798866]
[1763340520107,9.23336045,139.31,139.28,6.58798866]
[1763340520313,9.23336045,139.3,139.28,6.58798866]
[1763340520513,9.23336045,139.29,139.28,5.89798866]
[1763340520815,9.23336045,139.29,139.26,5.89798866]
[1763340521015,9.23336045,139.27,139.25,5.89798866]
[1763340524031,0.57,139.3,139.25,6.58798866]
[1763340524432,9.23336045,139.28,139.26,6.58798866]
[1763340525022,9.23336045,139.28,139.26,5.89798866]
[1763340525226,9.23336045,139.27,139.26,5.89798866]
[1763340525421,9.23336045,139.28,139.26,6.58798866]
[1763340525613,0.57,139.3,139.26,6.58798866]
[1763340525813,9.23336045,139.28,139.26,6.58798866]
[1763340526238,22.6512,139.31,139.26,6.58798866]
[1763340526437,9.23336045,139.28,139.27,5.89798866]
[1763340526640,22.6512,139.31,139.27,5.89798866]
[1763340526843,9.23336045,139.28,139.27,5.89798866]
[1763340527938,22.6512,139.31,139.27,5.89798866]
[1763340528134,9.23336045,139.29,139.27,5.89798866]
[1763340528629,9.23336045,139.28,139.27,5.89798866]
[1763340528822,3.31156966,139.28,139.27,5.89798866]
[1763340529142,22.6512,139.31,139.27,6.58798866]
[1763340529332,29.84433932,139.28,139.24,5.89798866]
[1763340529516,3.31156966,139.25,139.23,5.89798866]
[1763340529719,3.31156966,139.24,139.23,5.89798866]
[1763340529915,3.31156966,139.25,139.24,0.69]
[1763340530135,3.31156966,139.25,139.24,6.59311899]
[1763340530324,3.31156966,139.25,139.23,7.87105065]
[1763340530534,3.31156966,139.25,139.23,8.56105065]
[1763340530736,3.31156966,139.24,139.23,8.56105065]
[1763340530948,9.23054035,139.24,139.23,8.56105065]
[1763340531255,9.23054035,139.25,139.23,8.56105065]
[1763340531425,9.23054035,139.24,139.23,8.56105065]
[1763340533443,9.23054035,139.25,139.23,8.56105065]
[1763340534033,9.23054035,139.25,139.24,0.69]
[1763340534435,9.23054035,139.26,139.24,0.69]
[1763340534632,20.3312,139.29,139.24,8.56105065]
[1763340534840,9.23054035,139.35,139.32,22.6512]
[1763340535022,9.23054035,139.35,139.33,5.89044619]
[1763340535223,50.0,139.42,139.34,5.89044619]
[1763340535424,9.23054035,139.35,139.3,5.89044619]
[1763340535648,9.23054035,139.31,139.3,5.89044619]
[1763340536019,9.23054035,139.32,139.29,7.85392826]
[1763340536223,0.71,139.34,139.31,5.89013681]
[1763340536428,0.71,139.33,139.28,5.89013681]
[1763340536639,22.6512,139.32,139.28,5.89013681]
[1763340536853,22.6512,139.32,139.27,5.89013681]
[1763340537025,22.6512,139.32,139.28,5.89013681]
[1763340537026,0.71,139.31,139.28,5.89013681]
[1763340537539,0.71,139.31,139.23,22.6512]
[1763340537540,9.23054035,139.29,139.27,5.89013681]
[1763340537742,0.71,139.28,139.27,5.89013681]
[1763340537951,9.23054035,139.28,139.27,5.89013681]
[1763340538348,9.94054035,139.28,139.27,5.89013681]
[1763340538546,9.23054035,139.28,139.27,5.89013681]
[1763340540262,9.95054035,139.28,139.27,5.89013681]
[1763340540460,9.95054035,139.28,139.25,5.89013681]
[1763340540641,9.23054035,139.26,139.25,5.89013681]
[1763340540969,9.23054035,139.26,139.23,7.85392826]
[1763340540970,9.95054035,139.26,139.23,5.89013681]
[1763340541267,22.6512,139.22,139.15,7.85392826]
[1763340541483,9.23054035,139.16,139.13,8.05392826]
[1763340541763,9.23054035,139.14,139.13,0.2]
[1763340542459,9.23054035,139.16,139.13,0.89]
[1763340542835,5.52889633,139.16,139.14,0.69]
[1763340543663,5.52889633,139.17,139.14,0.69]
[1763340544162,5.52889633,139.19,139.15,9.78882769]
[1763340544654,5.52889633,139.19,139.16,0.69]
[1763340545435,5.52889633,139.22,139.17,9.78882769]
[1763340545639,5.52889633,139.23,139.18,0.69]
[1763340545839,5.52889633,139.23,139.18,8.54392826]
[1763340546067,5.52889633,139.23,139.18,14.07282459]
[1763340546269,5.52889633,139.21,139.17,7.85392826]
[1763340546478,5.52889633,139.19,139.14,17.64275595]
[1763340546677,5.52889633,139.15,139.13,0.2]
[1763340546964,5.52889633,139.14,139.13,0.2]
[1763340547155,0.63,139.17,139.13,0.2]
[1763340547358,5.52889633,139.14,139.13,0.2]
[1763340547677,5.52889633,139.15,139.13,0.89]
[1763340548041,5.52889633,139.15,139.13,0.2]
[1763340548372,10.41882769,139.23,139.14,0.69]
[1763340548554,5.52889633,139.18,139.14,0.69]
[1763340548865,5.52889633,139.17,139.14,0.69]
[1763340549665,22.6512,139.2,139.13,0.2]
[1763340549666,5.52889633,139.16,139.13,0.2]
[1763340549964,5.52889633,139.15,139.13,0.2]
[1763340550470,5.52889633,139.15,139.13,0.89]
[1763340550844,5.52889633,139.18,139.14,0.69]
[1763340551044,9.78882769,139.24,139.14,0.69]
[1763340551045,0.63,139.24,139.15,9.78882769]
[1763340551244,5.52889633,139.18,139.14,8.54392826]
[1763340551652,5.52889633,139.18,139.15,0.69]
[1763340552053,5.52889633,139.22,139.16,15.31772402]
[1763340552348,5.52889633,139.2,139.16,17.64275595]
[1763340552549,5.52889633,139.18,139.15,7.85392826]
[1763340552864,0.63,139.22,139.13,12.70146201]
[1763340552865,5.52889633,139.16,139.13,0.2]
[1763340553172,5.52889633,139.14,139.13,0.2]
[1763340554644,22.6512,139.17,139.13,0.89]
[1763340554955,5.52889633,139.14,139.13,0.2]
[1763340555378,6.15889633,139.14,139.13,0.2]
[1763340556170,5.52889633,139.14,139.13,0.2]
[1763340557143,22.6512,139.17,139.13,0.92]
[1763340557347,5.52889633,139.15,139.13,0.92]
[1763340558387,5.52889633,139.16,139.14,0.72]
[1763340558559,10.41882769,139.22,139.14,0.72]
[1763340558560,5.52889633,139.18,139.14,0.72]
[1763340558769,0.63,139.22,139.14,0.72]
[1763340558770,5.52889633,139.22,139.16,5.52889633]
[1763340559087,5.52889633,139.22,139.17,0.72]
[1763340559267,5.52889633,139.2,139.17,0.72]
[1763340559972,5.52889633,139.21,139.17,0.72]
[1763340560353,5.52889633,139.23,139.18,9.78882769]
[1763340560569,5.52889633,139.24,139.18,15.31772402]
[1763340560876,21.72901356,139.28,139.19,0.72]
[1763340560877,5.52889633,139.23,139.19,0.72]
[1763340561076,22.6512,139.25,139.19,0.72]
[1763340561379,5.52889633,139.26,139.21,9.78882769]
[1763340561582,5.52889633,139.28,139.22,6.24889633]
[1763340561873,5.52889633,139.3,139.24,5.52889633]
[1763340562378,5.52889633,139.3,139.25,0.72]
[1763340562557,59.78882769,139.35,139.26,15.31772402]
[1763340562558,0.62,139.35,139.26,15.31772402]
[1763340562759,5.52889633,139.32,139.27,5.52889633]
[1763340562949,5.52889633,139.33,139.27,6.24889633]
[1763340563154,5.52889633,139.33,139.28,0.72]
[1763340563350,5.52889633,139.32,139.28,0.72]
[1763340563552,5.52889633,139.31,139.26,10.50882769]
[1763340563770,22.6512,139.34,139.27,0.72]
[1763340564055,5.52889633,139.33,139.27,6.24889633]
[1763340564254,5.52889633,139.34,139.28,15.31772402]
[1763340564549,5.52889633,139.33,139.28,10.50882769]
[1763340564765,5.52889633,139.31,139.26,0.72]
[1763340564950,5.52889633,139.29,139.26,0.72]
[1763340565358,5.52889633,139.28,139.24,23.3712]
[1763340565555,5.52889633,139.29,139.25,0.22]
[1763340565755,5.52889633,139.28,139.25,0.22]
[1763340566260,0.66,139.31,139.25,0.22]
[1763340566455,5.52889633,139.29,139.25,0.22]
[1763340566655,5.52889633,139.28,139.25,0.22]
[1763340566950,0.66,139.31,139.25,0.22]
[1763340567175,5.52889633,139.3,139.25,0.22]
[1763340567352,5.52889633,139.29,139.25,0.22]
[1763340567911,5.52889633,139.27,139.22,7.85392826]
[1763340568107,50.0,139.32,139.21,22.6512]
[1763340568108,22.6512,139.3,139.23,0.72]
[1763340568312,5.52889633,139.27,139.23,0.72]
[1763340569294,5.52889633,139.26,139.21,9.78882769]
[1763340569485,5.52889633,139.25,139.21,0.72]
[1763340570607,5.52889633,139.26,139.21,0.72]
[1763340570809,5.52889633,139.26,139.21,10.50882769]
[1763340570984,5.52889633,139.25,139.21,10.50882769]
[1763340571179,5.52889633,139.26,139.22,0.69]
[1763340573390,23.3612,139.29,139.22,0.69]
[1763340573593,5.52889633,139.26,139.22,0.69]
[1763340573896,5.52889633,139.27,139.22,0.69]
[1763340575023,5.52889633,139.26,139.22,0.69]
[1763340575511,5.52889633,139.27,139.22,0.69]
[1763340576091,5.52889633,139.26,139.22,0.69]
[1763340576317,5.52889633,139.27,139.22,0.69]
[1763340576822,28.18009633,139.28,139.23,15.31772402]
[1763340576997,28.18009633,139.28,139.24,0.69]
[1763340577195,5.52889633,139.28,139.24,0.69]
[1763340577405,21.59650899,139.37,139.27,5.52889633]
[1763340577602,5.52889633,139.29,139.25,8.54392826]
[1763340577898,5.52889633,139.29,139.25,0.69]
[1763340578099,5.52889633,139.28,139.26,0.69]
[1763340578297,5.52889633,139.29,139.26,0.69]
[1763340578716,5.52889633,139.28,139.23,23.3412]
[1763340578925,5.52889633,139.27,139.23,0.69]
[1763340579106,5.52889633,139.27,139.23,10.47882769]
[1763340579310,5.52889633,139.27,139.24,0.69]
[1763340579504,5.52889633,139.27,139.22,9.78882769]
[1763340579505,5.52889633,139.26,139.22,9.78882769]
[1763340579711,5.52889633,139.26,139.23,0.69]
[1763340580722,5.52889633,139.31,139.25,5.52889633]
[1763340580911,0.71,139.34,139.28,9.78882769]
[1763340581117,21.10649547,139.37,139.28,9.78882769]
[1763340581118,5.52889633,139.33,139.29,0.69]
[1763340581416,0.71,139.36,139.29,0.69]
[1763340581417,5.52889633,139.35,139.29,6.21889633]
[1763340581917,5.52889633,139.34,139.3,0.69]
[1763340582221,11.78882769,139.41,139.3,0.69]
[1763340582222,0.71,139.42,139.33,15.31772402]
[1763340582530,5.52889633,139.4,139.35,9.78882769]
[1763340582727,5.62889633,139.38,139.34,0.69]
[1763340583018,5.62889633,139.38,139.33,5.52889633]
[1763340583019,0.1,139.38,139.33,5.52889633]
[1763340583219,0.1,139.38,139.35,0.69]
[1763340583626,0.1,139.44,139.4,22.6512]
[1763340583920,0.1,139.44,139.43,5.52889633]
[1763340584309,0.1,139.44,139.43,16.00772402]
[1763340584906,0.1,139.44,139.41,10.47882769]
[1763340585104,0.1,139.44,139.42,0.69]
[1763340585803,0.1,139.44,139.43,37.96892402]
[1763340586006,0.1,139.44,139.43,38.65892402]
[1763340587832,0.1,139.47,139.46,32.44002769]
[1763340588041,0.1,139.47,139.46,38.65892402]
[1763340588633,0.1,139.47,139.44,23.3412]
[1763340588795,0.1,139.47,139.44,16.00772402]
[1763340589000,0.1,139.47,139.45,6.21889633]
[1763340589200,0.1,139.47,139.45,0.69]
[1763340589527,0.1,139.47,139.46,10.47882769]
[1763340589704,0.1,139.47,139.46,16.00772402]
[1763340592332,0.1,139.49,139.48,15.31772402]
[1763340592824,0.1,139.49,139.48,0.69]
[1763340593030,0.1,139.49,139.47,9.78882769]
[1763340593205,0.1,139.49,139.47,10.47882769]
[1763340593607,0.1,139.49,139.45,5.52889633]
[1763340593810,0.1,139.49,139.43,0.69]
[1763340593811,5.52889633,139.48,139.43,0.69]
[1763340594232,5.52889633,139.46,139.4,0.69]
[1763340594430,5.52889633,139.45,139.4,0.69]
[1763340594844,5.52889633,139.44,139.38,0.69]
[1763340595003,5.52889633,139.43,139.36,0.69]
[1763340595350,9.78882769,139.47,139.37,0.69]
[1763340595520,5.52889633,139.43,139.37,0.69]
[1763340595932,5.52889633,139.42,139.37,0.69]
[1763340596703,6.23889633,139.42,139.37,0.69]
[1763340597308,0.71,139.41,139.38,22.6512]
[1763340597604,5.52889633,139.42,139.38,22.6512]
[1763340597807,0.71,139.41,139.38,22.6512]
[1763340598227,5.52889633,139.42,139.38,22.6512]
[1763340598641,6.23889633,139.41,139.36,10.47882769]
[1763340598858,6.23889633,139.41,139.31,17.97]
[1763340598859,5.52889633,139.38,139.31,17.97]
[1763340599042,5.52889633,139.38,139.31,23.49889633]
[1763340599214,5.52889633,139.38,139.31,46.15009633]
[1763340599626,5.52889633,139.38,139.32,9.78882769]
[1763340599836,6.23889633,139.39,139.33,5.52889633]
[1763340600146,0.71,139.39,139.33,5.52889633]